bitfinex-derivatives/quotes_ETHF0:USTF0_20210406
["timestamp","ask_amount","ask_price","bid_price","bid_amount"]
[1617710690785,9.6078,2120.5,2120.4,10.98955]
[1617710692185,9.6078,2120.5,2120.4,13.13685]
[1617710693694,9.6078,2120.5,2120.4,12.19425]
[1617710694588,9.6078,2120.5,2120.4,13.13885]
[1617710697694,9.6078,2120.5,2120.4,12.19425]
[1617710698702,9.6078,2120.5,2120.4,13.14325]
[1617710702501,9.6078,2120.5,2120.4,121.84395]
[1617710703402,9.6078,2120.5,2120.4,120.89495]
[1617710704301,10.5603,2120.5,2120.4,90.89495]
[1617710704601,9.6078,2120.5,2120.4,90.89495]
[1617710705703,10.5407,2120.5,2120.4,90.89495]
[1617710705902,10.5407,2120.5,2120.4,88.89495]
[1617710706103,9.6078,2120.5,2120.4,87.69415]
[1617710706603,9.6078,2120.5,2120.4,86.74765]
[1617710709104,9.6078,2120.5,2120.4,87.67715]
[1617710709307,9.6078,2120.5,2120.4,86.74765]
[1617710710420,9.6078,2120.5,2120.4,87.70175]
[1617710710711,9.6078,2120.5,2120.4,86.74765]
[1617710711612,10.552,2120.5,2120.4,86.74765]
[1617710711911,9.6078,2120.5,2120.4,87.70385]
[1617710712511,9.6078,2120.5,2120.4,86.74765]
[1617710713813,9.6078,2120.5,2120.4,87.70085]
[1617710714813,9.6078,2120.5,2120.4,86.74765]
[1617710715314,11.9038,2120.5,2120.4,86.74765]
[1617710715817,41.9038,2120.5,2120.4,5.14]
[1617710716216,41.9038,2120.5,2119.7,65.8682]
[1617710716416,41.9038,2120.5,2119.8,5.74]
[1617710716716,41.9038,2120.5,2120.4,5.75]
[1617710716919,41.9038,2120.5,2119.7,65.8682]
[1617710717116,41.9038,2120.5,2120.4,5.8]
[1617710717417,41.9038,2120.5,2120.4,0.9328]
[1617710717715,41.9038,2120.5,2120.4,5.86]
[1617710718116,41.9038,2120.5,2119.0,0.9427]
[1617710718117,43.9038,2120.5,2119.8,5.73]
[1617710718319,43.9038,2120.5,2120.1,5.66]
[1617710718520,43.9038,2120.5,2120.4,4.91]
[1617710718718,43.9038,2120.5,2119.1,0.02]
[1617710719020,41.9038,2120.5,2120.4,5.69]
[1617710719218,39.6078,2120.5,2120.4,0.03]
[1617710719426,39.6078,2120.5,2120.3,2.7485]
[1617710719719,39.6078,2120.5,2120.4,5.94]
[1617710719918,39.6078,2120.5,2120.3,2.7485]
[1617710720318,39.6078,2120.5,2120.4,5.75]
[1617710720518,39.6078,2120.5,2120.4,6.7057]
[1617710720920,39.6078,2120.5,2120.4,0.9557]
[1617710721318,39.6078,2120.5,2120.4,6.7057]
[1617710722019,39.6078,2120.5,2120.4,5.75]
[1617710722620,39.6078,2120.5,2120.1,5.94]
[1617710722920,39.6078,2120.5,2120.4,5.68]
[1617710723220,39.6078,2120.5,2120.1,5.89]
[1617710723523,39.6078,2120.5,2120.4,5.89]
[1617710723922,39.6078,2120.5,2120.1,5.87]
[1617710724123,39.6078,2120.5,2120.4,5.83]
[1617710724523,39.6078,2120.5,2120.1,5.73]
[1617710724723,39.6078,2120.5,2120.4,5.69]
[1617710725124,39.6078,2120.5,2118.6,13.7008]
[1617710725125,39.6078,2120.5,2120.2,5.69]
[1617710725324,2.90695,2120.3,2120.2,5.69]
[1617710725524,32.90695,2120.3,2119.7,0.9525]
[1617710725724,32.90695,2120.3,2120.2,4.84]
[1617710726026,32.90695,2120.3,2119.7,0.9525]
[1617710726324,32.90695,2120.3,2120.2,5.78]
[1617710726624,32.90695,2120.3,2119.8,5.89]
[1617710726926,32.90695,2120.3,2120.2,5.74]
[1617710727326,32.90695,2120.3,2119.8,5.84]
[1617710727528,32.90695,2120.3,2120.2,5.94]
[1617710727930,32.90695,2120.3,2119.8,5.93]
[1617710728130,32.90695,2120.3,2120.2,5.84]
[1617710728533,32.90695,2120.3,2119.9,5.68]
[1617710728730,32.90695,2120.3,2120.2,5.76]
[1617710729230,32.90695,2120.3,2120.0,5.79]
[1617710729430,32.90695,2120.3,2120.2,5.7]
[1617710729730,32.90695,2120.3,2120.1,5.66]
[1617710730030,32.90695,2120.3,2120.2,5.68]
[1617710730431,32.90695,2120.3,2119.5,5.89]
[1617710730631,32.90695,2120.3,2117.9,74.9565]
[1617710730632,32.90695,2120.3,2120.2,5.9]
[1617710730832,32.90695,2120.3,2119.3,5.71]
[1617710731034,32.90695,2120.3,2117.9,74.9565]
[1617710731035,32.90695,2120.3,2119.6,5.83]
[1617710731234,32.90695,2120.3,2120.2,5.93]
[1617710731433,32.90695,2120.3,2119.3,5.71]
[1617710731434,34.90695,2120.3,2119.3,5.71]
[1617710731633,34.90695,2120.3,2119.7,5.9]
[1617710731935,34.90695,2120.3,2120.2,4.35]
[1617710732133,34.90695,2120.3,2119.8,5.72]
[1617710732333,34.90695,2120.3,2118.9,1.396]
[1617710732634,34.90695,2120.3,2120.2,5.81]
[1617710732833,34.90695,2120.3,2118.7,2.90695]
[1617710733035,34.90695,2120.3,2118.2,68.6323]
[1617710733336,2.90695,2118.3,2118.2,68.6323]
[1617710733838,2.90695,2118.3,2118.2,74.5123]
[1617710734235,2.90695,2118.3,2118.2,5.88]
[1617710735036,34.91955,2118.3,2118.2,5.88]
[1617710735338,34.91955,2118.3,2117.7,5.89]
[1617710735738,34.91955,2118.3,2118.2,5.71]
[1617710735942,34.91955,2118.3,2117.7,5.88]
[1617710736338,34.91955,2118.3,2118.2,5.79]
[1617710736538,34.91955,2118.3,2117.7,5.76]
[1617710736940,34.91955,2118.3,2118.2,5.7]
[1617710737138,34.91955,2118.3,2117.7,5.93]
[1617710737338,2.90695,2117.8,2117.7,5.93]
[1617710737540,32.90695,2117.8,2117.6,63.5539]
[1617710737939,32.90695,2117.8,2117.7,5.82]
[1617710738838,32.90695,2117.8,2117.6,5.8]
[1617710739241,32.90695,2117.8,2117.7,5.74]
[1617710739542,32.90695,2117.8,2117.6,5.72]
[1617710739740,32.90695,2117.8,2117.7,5.89]
[1617710740041,32.90695,2117.8,2116.8,5.91]
[1617710740239,32.90695,2117.8,2116.7,64.8485]
[1617710740443,32.90695,2117.8,2117.7,5.83]
[1617710740640,32.90695,2117.8,2116.8,5.75]
[1617710740940,32.90695,2117.8,2116.7,64.8485]
[1617710741242,32.90695,2117.8,2117.7,5.93]
[1617710741545,32.90695,2117.8,2116.9,2.90695]
[1617710741740,32.90695,2117.8,2117.7,5.83]
[1617710741940,32.90695,2117.8,2117.0,5.92]
[1617710741941,32.90695,2117.8,2117.0,4.7344]
[1617710742144,57.1185,2117.7,2116.8,5.89]
[1617710742340,30.0,2117.6,2116.8,5.89]
[1617710742541,30.0,2117.6,2117.1,5.52]
[1617710742740,30.0,2117.6,2116.9,5.75]
[1617710742940,32.9384,2117.6,2116.9,4.618]
[1617710743241,30.0,2117.4,2117.2,4.91]
[1617710743442,2.90695,2117.3,2117.0,5.528]
[1617710743641,30.0,2117.2,2116.9,5.71]
[1617710743842,30.0,2117.2,2116.3,2.90695]
[1617710744041,30.0,2117.2,2117.1,5.76]
[1617710744241,30.0,2117.2,2117.0,5.37]
[1617710744441,30.0,2117.2,2116.9,2.5203]
[1617710744744,30.0,2117.2,2117.1,5.9]
[1617710745042,30.0,2117.2,2117.0,5.72]
[1617710745241,30.0,2117.2,2117.1,5.8]
[1617710745441,30.0,2117.2,2117.0,5.76]
[1617710745841,30.0,2117.2,2117.1,5.77]
[1617710746041,30.0,2117.2,2116.8,2.9486]
[1617710746444,2.90695,2117.3,2117.1,5.7]
[1617710746643,2.90695,2117.3,2116.8,2.9486]
[1617710747044,2.90695,2117.3,2117.2,5.85]
[1617710747445,2.90695,2117.3,2117.2,2.90695]
[1617710747646,2.90695,2117.3,2117.2,8.76695]
[1617710747845,2.90695,2117.3,2117.2,3.85975]
[1617710748046,2.90695,2117.3,2116.8,2.9486]
[1617710748346,2.90695,2117.3,2117.2,5.69]
[1617710748645,2.90695,2117.3,2116.8,2.9486]
[1617710748646,2.90695,2117.3,2116.9,5.89]
[1617710748849,2.90695,2117.3,2117.2,5.85]
[1617710749052,2.90695,2117.3,2117.2,6.7853]
[1617710749249,2.90695,2117.3,2116.9,5.72]
[1617710749449,2.90695,2117.3,2117.2,8.58695]
[1617710749750,2.90695,2117.3,2117.2,2.90695]
[1617710750050,2.90695,2117.3,2117.2,8.57695]
[1617710750450,30.0,2118.4,2117.2,9.51265]
[1617710750953,30.0,2118.4,2117.2,8.57695]
[1617710751352,2.0,2118.6,2117.2,8.57695]
[1617710751555,2.0,2118.6,2117.6,2.90695]
[1617710751753,30.0,2119.0,2117.6,5.78805]
[1617710752052,30.0,2119.0,2117.7,5.9]
[1617710752452,30.0,2119.0,2118.2,62.9915]
[1617710752755,30.0,2119.5,2118.2,65.7007]
[1617710752954,30.0,2119.5,2118.3,5.86]
[1617710753553,2.90695,2118.4,2118.3,8.76695]
[1617710756360,2.0,2119.3,2118.3,8.76695]
[1617710757161,0.9514,2119.3,2118.3,8.76695]
[1617710757362,0.9514,2119.3,2119.2,58.1687]
[1617710757568,3.85835,2119.3,2119.2,63.35235]
[1617710757764,2.90695,2119.3,2119.2,69.04235]
[1617710758165,30.9455,2120.3,2119.2,69.04235]
[1617710758363,30.0,2120.3,2119.2,69.04235]
[1617710759167,30.0,2120.3,2119.2,66.1354]
[1617710759564,3.85795,2119.3,2119.2,66.1354]
[1617710760065,0.951,2119.3,2119.2,66.1354]
[1617710760265,30.0,2120.3,2119.2,66.1354]
[1617710760665,30.0,2120.4,2119.2,66.1354]
[1617710760866,30.0,2120.2,2119.2,66.1354]
[1617710761667,30.0,2120.2,2119.4,2.90695]
[1617710761866,30.0,2120.2,2119.2,66.1354]
[1617710762167,30.0,2120.2,2119.5,5.89]
[1617710762366,30.939,2120.2,2119.3,5.7]
[1617710762768,32.939,2120.2,2119.6,5.7]
[1617710762968,32.939,2120.2,2119.3,5.66]
[1617710763172,30.0,2120.2,2119.3,5.66]
[1617710763368,30.0,2120.2,2119.7,5.85]
[1617710763568,2.90695,2119.8,2119.7,2.4842]
[1617710763969,2.90695,2119.8,2119.7,8.3042]
[1617710764570,32.90695,2119.8,2119.7,8.3042]
[1617710765671,32.90695,2119.8,2119.7,5.82]
[1617710766271,32.90695,2119.8,2118.9,77.3714]
[1617710766471,32.90695,2119.8,2119.7,5.73]
[1617710766874,32.90695,2119.8,2119.1,5.92]
[1617710767074,32.90695,2119.8,2119.7,5.86]
[1617710767377,32.90695,2119.8,2118.9,77.3714]
[1617710767574,30.0,2119.8,2119.0,5.79]
[1617710767774,24.18,2119.7,2118.9,77.3714]
[1617710768178,24.18,2119.7,2119.0,5.92]
[1617710768576,0.9543,2120.2,2119.0,5.92]
[1617710768776,87.183,2120.5,2119.0,5.92]
[1617710768777,30.0,2120.4,2119.0,5.92]
[1617710768977,2.0,2120.3,2119.0,5.92]
[1617710769179,30.0,2120.2,2119.0,5.92]
[1617710769381,2.0,2120.1,2119.0,5.92]
[1617710769583,2.90695,2119.1,2119.0,5.92]
[1617710774180,32.90695,2119.1,2119.0,5.92]
[1617710774678,32.90695,2119.1,2118.7,5.71]
[1617710774878,32.90695,2119.1,2119.0,5.93]
[1617710775179,32.90695,2119.1,2118.8,5.85]
[1617710775478,32.90695,2119.1,2119.0,5.77]
[1617710775878,32.90695,2119.1,2118.9,5.66]
[1617710776178,32.90695,2119.1,2119.0,5.84]
[1617710776478,32.90695,2119.1,2118.1,73.97185]
[1617710776686,32.90695,2119.1,2119.0,5.84]
[1617710776983,32.90695,2119.1,2118.1,73.97185]
[1617710777182,32.90695,2119.1,2118.5,5.78]
[1617710777481,32.90695,2119.1,2118.4,5.87]
[1617710777681,2.90695,2118.6,2118.4,5.87]
[1617710777983,2.90695,2118.6,2118.1,73.97185]
[1617710778183,2.90695,2118.6,2118.5,5.92]
[1617710778383,2.90695,2118.6,2118.4,5.88]
[1617710778582,2.90695,2118.6,2118.1,73.97185]
[1617710778983,2.90695,2118.6,2118.4,5.89]
[1617710779385,2.90695,2118.6,2118.4,6.8252]
[1617710779585,2.90695,2118.6,2118.3,5.79]
[1617710779786,2.90695,2118.6,2118.1,73.97185]
[1617710779986,30.0,2118.5,2118.1,73.97185]
[1617710780186,30.0,2118.5,2118.3,5.74]
[1617710780589,30.0,2118.5,2117.1,13.5303]
[1617710780590,32.0,2118.5,2117.1,13.5303]
[1617710780789,32.0,2118.5,2118.4,5.89]
[1617710781189,32.0,2118.5,2117.1,13.5303]
[1617710781389,32.0,2118.5,2118.4,5.79]
[1617710781790,32.0,2118.5,2117.3,2.90695]
[1617710781990,32.0,2118.5,2118.4,5.8]
[1617710782394,32.0,2118.5,2117.3,2.90695]
[1617710782598,32.0,2118.5,2117.5,5.72]
[1617710782797,32.0,2118.5,2118.4,5.86]
[1617710782997,32.0,2118.5,2117.4,5.73]
[1617710783196,32.0,2118.5,2117.6,5.87]
[1617710783497,32.0,2118.5,2118.4,5.68]
[1617710783697,32.0,2118.5,2117.4,5.73]
[1617710783898,32.0,2118.5,2117.4,0.9303]
[1617710784098,32.0,2118.5,2118.4,5.9]
[1617710784298,32.0,2118.5,2117.4,0.9303]
[1617710784299,32.0,2118.5,2117.8,0.9449]
[1617710784499,32.0,2118.5,2117.5,5.94]
[1617710784701,32.0,2118.5,2118.4,5.68]
[1617710784900,32.0,2118.5,2117.4,0.9303]
[1617710785199,32.0,2118.5,2118.4,5.84]
[1617710785600,32.0,2118.5,2117.5,5.94]
[1617710785801,30.0,2118.0,2117.5,5.94]
[1617710786001,30.0,2118.0,2117.3,2.90695]
[1617710786202,30.0,2118.0,2117.6,5.92]
[1617710786503,2.90695,2118.1,2117.6,5.92]
[1617710786702,2.90695,2118.1,2117.4,5.72]
[1617710786906,2.90695,2118.1,2117.7,5.93]
[1617710787106,2.90695,2118.1,2117.7,8.1945]
[1617710787306,2.90695,2118.1,2117.7,2.2645]
[1617710787504,2.90695,2118.1,2117.8,5.68]
[1617710788505,2.90695,2118.1,2117.7,5.7]
[1617710788806,2.90695,2118.1,2117.9,5.86]
[1617710789106,2.90695,2118.1,2117.9,0.934]
[1617710789307,2.90695,2118.1,2117.7,5.67]
[1617710789506,2.90695,2118.1,2118.0,5.78]
[1617710789807,2.90695,2118.1,2117.7,8.72695]
[1617710790005,2.90695,2118.1,2118.0,8.7189]
[1617710790408,2.90695,2118.1,2118.0,3.0089]
[1617710790607,2.90695,2118.1,2118.0,8.8889]
[1617710791910,2.90695,2118.1,2118.0,11.79585]
[1617710793011,2.90695,2118.1,2118.0,8.8889]
[1617710793217,2.90695,2118.1,2118.0,5.88]
[1617710793412,2.90695,2118.1,2117.7,5.73]
[1617710793814,2.8597,2118.7,2118.0,5.86]
[1617710794317,2.8597,2118.7,2117.7,5.86]
[1617710794518,32.8597,2118.7,2118.0,5.67]
[1617710794820,30.0,2118.7,2117.7,5.79]
[1617710795019,30.0,2118.7,2118.1,5.91]
[1617710795218,30.9322,2118.7,2118.1,5.91]
[1617710795421,30.0,2118.7,2117.7,5.66]
[1617710795623,30.0,2118.7,2118.2,5.76]
[1617710795824,2.90695,2118.3,2118.2,5.76]
[1617710796022,2.90695,2118.3,2117.8,2.90695]
[1617710796224,2.90695,2118.3,2117.9,5.93]
[1617710797924,2.90695,2118.0,2117.9,5.93]
[1617710800226,32.0,2119.4,2117.9,5.93]
[1617710800424,32.0,2119.4,2117.9,8.033]
[1617710801127,2.0,2119.4,2117.9,8.033]
[1617710801426,32.9372,2119.6,2117.9,8.033]
[1617710801626,32.9372,2119.6,2118.0,2.0]
[1617710801826,30.9372,2119.6,2118.1,5.92]
[1617710802026,30.9372,2119.6,2118.5,2.90695]
[1617710802225,30.0,2119.6,2118.6,5.91]
[1617710803230,30.0,2119.6,2118.6,61.8776]
[1617710803931,2.90695,2118.7,2118.6,61.8776]
[1617710811040,2.90695,2118.7,2118.6,5.91]
[1617710812243,32.90695,2118.7,2118.6,5.91]
[1617710812747,32.90695,2118.7,2118.6,5.6761]
[1617710818453,32.90695,2118.7,2118.6,6.6285]
[1617710818653,32.90695,2118.7,2118.6,5.6761]
[1617710819653,86.14635,2118.7,2118.6,5.6761]
[1617710821056,32.90695,2118.7,2118.6,5.6761]
[1617710823156,32.90695,2118.7,2118.6,6.6311]
[1617710823858,32.90695,2118.7,2118.6,5.6761]
[1617710825758,32.90695,2118.7,2118.6,6.6292]
[1617710826158,32.90695,2118.7,2118.6,5.6761]
[1617710830363,32.90695,2118.7,2118.6,6.6198]
[1617710830564,32.90695,2118.7,2118.6,5.6761]
[1617710839176,32.90695,2118.7,2118.6,6.615]
[1617710839676,32.90695,2118.7,2118.6,5.6761]
[1617710841881,32.90695,2118.7,2118.6,6.6088]
[1617710842077,32.90695,2118.7,2118.6,5.6761]
[1617710843383,32.90695,2118.7,2118.6,6.6172]
[1617710843583,32.90695,2118.7,2118.6,5.6761]
[1617710844484,32.90695,2118.7,2118.6,6.6216]
[1617710844683,32.90695,2118.7,2118.6,5.6761]
[1617710846795,32.90695,2118.7,2118.6,6.6335]
[1617710846988,32.90695,2118.7,2118.6,5.6761]
[1617710848994,32.90695,2118.7,2118.6,6.6152]
[1617710849293,32.90695,2118.7,2118.6,5.6761]
[1617710851203,32.90695,2118.7,2118.6,6.63]
[1617710853203,32.90695,2118.7,2118.6,5.6761]
[1617710854204,32.90695,2118.7,2118.6,6.6266]
[1617710856808,35.33755,2118.7,2118.6,6.3188]
[1617710860712,35.33755,2118.7,2118.6,5.7523]
[1617710861012,32.90695,2118.7,2118.6,5.7523]
[1617710861313,2.90695,2118.7,2118.6,5.7523]
[1617710861913,32.90695,2118.7,2118.6,5.7523]
[1617710862215,33.85085,2118.7,2118.6,4.8982]
[1617710862513,33.85085,2118.7,2118.6,2.7637]
[1617710862919,35.85085,2118.7,2118.6,2.7637]
[1617710863217,34.90695,2118.7,2118.6,2.7637]
[1617710863816,34.90695,2118.7,2118.6,0.6939]
[1617710864219,34.92084229,2118.7,2118.6,1.6482]
[1617710864515,34.92084229,2118.7,2117.1,0.9409]
[1617710864718,73.554,2118.4,2116.6,56.1165]
[1617710864917,30.0,2118.3,2117.6,5.7]
[1617710865116,30.9335,2118.3,2117.6,5.7]
[1617710865315,32.7626,2118.3,2116.7,3.14]
[1617710865718,31.8291,2118.3,2116.7,3.14]
[1617710866523,31.8291,2118.3,2116.9,2.90695]
[1617710866924,31.8291,2118.3,2117.0,5.93]
[1617710868527,2.90695,2117.1,2117.0,5.93]
[1617710870927,5.72415,2117.1,2117.0,5.93]
[1617710871228,5.72415,2117.1,2116.7,5.71]
[1617710871528,5.72415,2117.1,2117.0,5.67]
[1617710871728,5.72415,2117.1,2116.6,3.92]
[1617710871929,5.72415,2117.1,2116.8,5.0]
[1617710872127,5.72415,2117.1,2117.0,5.86]
[1617710872629,5.72415,2117.1,2116.9,5.75]
[1617710872828,5.72415,2117.1,2117.0,5.82]
[1617710873028,5.72415,2117.1,2116.8,5.59]
[1617710873229,5.72415,2117.1,2116.3,2.90695]
[1617710873428,5.72415,2117.1,2117.0,5.84]
[1617710873628,5.72415,2117.1,2116.9,5.84]
[1617710873931,5.72415,2117.1,2117.0,5.4]
[1617710874228,36.67385,2117.1,2116.6,5.68]
[1617710874428,35.72415,2117.1,2116.6,5.68]
[1617710874629,32.90695,2116.7,2116.4,5.87]
[1617710874829,32.90695,2116.7,2116.3,2.90695]
[1617710875031,32.90695,2116.7,2116.4,5.78]
[1617710875430,32.90695,2116.7,2115.9,5.76]
[1617710875732,87.24255,2116.7,2116.5,5.78]
[1617710875930,87.24255,2116.7,2116.0,5.75]
[1617710876230,87.24255,2116.7,2115.5,5.93]
[1617710876529,87.24255,2116.7,2116.6,4.7885]
[1617710876730,87.24255,2116.7,2116.1,4.45]
[1617710876930,87.24255,2116.7,2116.6,5.79]
[1617710877131,87.24255,2116.7,2115.7,0.29]
[1617710877333,87.24255,2116.7,2116.2,4.41]
[1617710877535,87.24255,2116.7,2116.6,5.87]
[1617710877835,87.24255,2116.7,2116.3,5.67]
[1617710878135,30.0,2116.5,2115.6,2.90695]
[1617710878334,32.2261,2116.5,2115.7,5.9]
[1617710878738,2.90695,2115.8,2115.7,5.9]
[1617710880336,2.90695,2115.8,2115.7,7.9]
[1617710880936,54.3356,2116.7,2115.7,7.9]
[1617710881236,30.0,2117.0,2115.9,69.5813]
[1617710881537,30.0,2117.0,2116.0,5.92]
[1617710882639,2.90695,2116.1,2116.0,5.92]
[1617710882839,30.0,2117.0,2116.0,6.8751]
[1617710883138,0.9528,2117.0,2116.0,6.8751]
[1617710883539,0.9528,2117.0,2116.0,8.8751]
[1617710883838,0.9528,2117.0,2116.0,6.8751]
[1617710884441,0.9528,2117.0,2116.0,5.92]
[1617710884741,0.9528,2117.0,2116.1,2.90695]
[1617710885242,0.9528,2117.0,2116.2,5.93]
[1617710885741,30.0,2117.6,2116.2,5.93]
[1617710886142,0.9386,2117.8,2116.9,71.4105]
[1617710886342,0.9579,2118.4,2116.9,74.2931]
[1617710886542,30.0,2118.7,2117.0,5.94]
[1617710886842,2.90695,2117.1,2117.0,5.94]
[1617710890048,2.90695,2117.1,2116.7,62.8022]
[1617710890247,2.90695,2117.1,2116.8,5.91]
[1617710890548,2.90695,2117.1,2117.0,5.69]
[1617710890948,2.90695,2117.1,2116.9,8.82695]
[1617710891248,2.90695,2117.1,2117.0,5.74]
[1617710891847,3.84605,2117.1,2117.0,5.74]
[1617710892048,2.90695,2117.1,2117.0,5.74]
[1617710892648,2.90695,2117.1,2117.0,6.6722]
[1617710892948,30.0,2118.9,2117.0,6.6722]
[1617710893151,30.0,2118.9,2117.6,66.1314]
[1617710893351,30.0,2118.9,2117.6,68.6737]
[1617710893550,30.0,2118.9,2117.7,5.78]
[1617710893753,76.7786,2119.5,2117.7,5.78]
[1617710893953,30.0,2119.4,2117.7,5.78]
[1617710894453,30.0,2119.4,2117.7,6.7277]
[1617710894654,30.0,2119.4,2118.4,61.6813]
[1617710894856,2.90695,2118.5,2118.4,64.2724]
[1617710895258,2.90695,2118.5,2118.4,70.1624]
[1617710895861,2.90695,2118.5,2118.4,71.1093]
[1617710896258,2.90695,2118.5,2118.4,9.428]
[1617710896457,2.90695,2118.5,2118.4,6.8369]
[1617710896659,2.90695,2118.5,2118.4,5.89]
[1617710897158,2.90695,2118.5,2118.1,5.88]
[1617710897360,2.90695,2118.5,2118.4,5.67]
[1617710897560,2.90695,2118.5,2118.0,73.7991]
[1617710897860,2.90695,2118.5,2118.4,5.86]
[1617710898261,2.90695,2118.5,2118.1,5.79]
[1617710898860,2.90695,2118.2,2118.1,5.79]
[1617710900662,2.90695,2118.2,2118.1,6.7221]
[1617710900863,2.90695,2118.2,2118.1,1.0925]
[1617710902961,3.83955,2118.2,2118.1,2.0354]
[1617710903163,2.90695,2118.2,2118.1,1.0925]
[1617710904265,2.90695,2118.2,2118.1,2.0479]
[1617710904566,2.90695,2118.2,2118.1,1.0925]
[1617710908472,2.90695,2118.2,2118.1,2.0237]
[1617710909173,32.90695,2118.2,2118.1,2.0237]
[1617710909675,32.90695,2118.2,2118.1,1.0925]
[1617710910579,2.90695,2118.2,2118.1,0.3736]
[1617710910782,2.90695,2118.2,2118.0,73.7618]
[1617710911080,2.90695,2118.2,2118.1,5.71]
[1617710912483,2.90695,2118.2,2118.1,6.6632]
[1617710912783,2.90695,2118.2,2118.1,5.71]
[1617710915085,33.85815,2118.2,2118.1,5.71]
[1617710915784,33.85815,2118.2,2117.2,5.8]
[1617710915984,36.44905,2118.2,2118.1,5.82]
[1617710916486,36.44905,2118.2,2117.0,59.92735]
[1617710916487,36.44905,2118.2,2117.2,5.73]
[1617710916688,36.44905,2118.2,2118.1,5.92]
[1617710916984,36.44905,2118.2,2117.2,5.76]
[1617710917484,36.44905,2118.2,2118.1,5.89]
[1617710917685,36.44905,2118.2,2117.2,5.67]
[1617710918684,35.49785,2118.2,2117.2,5.67]
[1617710918885,2.90695,2118.2,2117.2,5.67]
[1617710919087,2.90695,2117.3,2117.2,5.67]
[1617710919785,0.9461,2118.3,2117.2,7.67]
[1617710919985,71.6341,2118.7,2117.2,9.611]
[1617710921186,71.6341,2118.7,2117.5,2.90695]
[1617710921486,30.0,2118.6,2117.6,5.66]
[1617710922787,71.6341,2118.7,2117.6,5.66]
[1617710922987,71.6341,2118.7,2117.6,8.1201]
[1617710923287,2.90695,2117.7,2117.6,8.1201]
[1617710925292,2.90695,2117.7,2117.6,5.66]
[1617710926093,2.90695,2117.7,2117.2,5.82]
[1617710926494,3.83945,2117.7,2117.6,5.83]
[1617710926694,3.83945,2117.7,2117.2,5.9]
[1617710927198,2.8982,2118.0,2117.6,5.7]
[1617710927497,2.8982,2118.0,2117.5,2.90695]
[1617710927795,2.8982,2118.0,2117.6,5.93]
[1617710928397,2.8982,2118.0,2117.2,5.85]
[1617710928601,30.0,2118.4,2117.2,5.85]
[1617710928899,68.7501,2118.3,2117.2,5.85]
[1617710929199,2.90695,2117.3,2117.2,5.85]
[1617710932802,0.9334,2119.0,2117.2,5.85]
[1617710933102,59.4504,2119.2,2117.8,66.7206]
[1617710933302,30.0,2119.1,2117.8,73.89955]
[1617710933503,30.0,2119.1,2117.9,5.87]
[1617710935208,2.90695,2118.0,2117.9,5.87]
[1617710935708,2.90695,2118.0,2117.5,5.84]
[1617710936008,2.90695,2118.0,2117.9,5.9]
[1617710936508,2.90695,2118.0,2117.9,2.0816]
[1617710936808,2.90695,2118.0,2117.9,7.7916]
[1617710937009,2.90695,2118.0,2117.9,4.0816]
[1617710937209,2.90695,2118.0,2117.9,7.8516]
[1617710945316,2.90695,2118.0,2117.9,73.3683]
[1617710946214,30.9408,2119.6,2117.9,73.3683]
[1617710946414,0.9408,2119.6,2117.9,10.8045]
[1617710946615,0.9408,2119.6,2118.6,74.0028]
[1617710946917,0.9408,2119.6,2118.7,5.79]
[1617710947415,2.90695,2118.8,2118.7,5.79]
[1617710951318,2.90695,2118.8,2118.7,6.7348]
[1617710951518,2.90695,2118.8,2118.7,5.79]
[1617710952521,59.57175,2118.8,2118.4,5.85]
[1617710952924,89.57175,2118.8,2118.7,5.32]
[1617710953124,89.57175,2118.8,2118.5,5.81]
[1617710953522,89.57175,2118.8,2118.7,5.83]
[1617710953721,89.57175,2118.8,2117.8,3.18]
[1617710953921,89.57175,2118.8,2117.5,73.90305]
[1617710954221,89.57175,2118.8,2118.7,5.92]
[1617710954422,89.57175,2118.8,2117.9,5.83]
[1617710954622,89.57175,2118.8,2117.5,73.90305]
[1617710954623,89.57175,2118.8,2117.7,2.96]
[1617710954821,89.57175,2118.8,2118.7,5.8]
[1617710955022,89.57175,2118.8,2117.9,5.73]
[1617710955321,89.57175,2118.8,2118.7,5.79]
[1617710955523,32.9704,2118.8,2118.7,5.79]
[1617710955725,32.9704,2118.8,2118.3,72.8217]
[1617710955923,32.9704,2118.8,2118.3,71.8046]
[1617710956224,32.9704,2118.8,2118.4,3.22]
[1617710956423,32.9704,2118.8,2118.4,4.1681]
[1617710957324,32.9704,2118.8,2118.4,3.22]
[1617710957526,32.90695,2118.5,2118.4,3.22]